[Event "DLM Youth 2024"]
[Site "Tuebingen"]
[Date "2024.10.03"]
[Round "2"]
[White "Reuter, Elisa"]
[Black "Groeschel, Karoline"]
[Result "0-1"]
[ECO "B67"]
[WhiteElo "1985"]
[BlackElo "1968"]
[Annotator "NA RC"]
[PlyCount "84"]
[EventDate "2024.10.03"]
[EventType "team-swiss"]
[EventRounds "7"]
[EventCountry "GER"]
[SourceTitle "playchess.com"]
[Source "ChessBase"]
[SourceQuality "1"]
[TimeControl "40/5400+30:1800+30"]

1. e4 {[%emt 0:00:02]} c5 {[%emt 0:00:11]} 2. Nf3 {[%emt 0:00:03]} d6 {[%emt 0:00:08]} 3. d4 {[%emt 0:00:03]} cxd4 {[%emt 0:00:03]} 4. Nxd4 {[%emt 0:00:03]} Nf6 {[%emt 0:00:07]} 5. Nc3 {[%emt 0:00:02]} Nc6 {[%emt 0:00:09]} 6. Bg5 {[%emt 0:00:03]} e6 {[%emt 0:00:08]} 7. Qd2 {[%emt 0:00:07]} a6 {[%emt 0:00:08]} 8. O-O-O {[%emt 0:01:01]} Bd7 {[%emt 0:00:04]} 9. f4 {[%emt 0:01:30]} b5 {[%emt 0:00:26]} 10. Nxc6 {[%emt 0:37:25]} Bxc6 {[%emt 0:00:10]} 11. Qd4 {[%emt 0:00:10]} Be7 {[%emt 0:03:52]} 12. Be2 {[%emt 0:01:03]} Rb8 {[%emt 0:21:12]} 13. Bf3 {[%emt 0:03:54]} Qc7 {[%emt 0:10:46]} 14. e5 {[%emt 0:01:55]} dxe5 {[%emt 0:01:28]} 15. Qxe5 {[%emt 0:02:38]} Rc8 {[%emt 0:01:03]} 16. Bxf6 {[%emt 0:10:10]} Bxf6 {[%emt 0:00:41]} 17. Qxc7 {[%emt 0:00:06]} Rxc7 {[%emt 0:00:43]} 18. Bxc6+ {[%emt 0:00:59]} Rxc6 {[%emt 0:00:09]} 19. Ne4 {[%emt 0:00:16]} Ke7 {[%emt 0:05:01]} 20. Nxf6 {[%emt 0:01:05]} Kxf6 {[%emt 0:00:14]} 21. Rd4 {[%emt 0:00:41]} Rhc8 {[%emt 0:04:37]} 22. Rd2 {[%emt 0:02:15]} R8c7 {[%emt 0:01:21]} 23. Rf1 {[%emt 0:00:39]} h5 {[%emt 0:01:58]} 24. Rff2 {[%emt 0:00:34]} Kf5 {[%emt 0:07:51]} 25. Rde2 {[%emt 0:04:29]} f6 {[%emt 0:01:08]} 26. Re3 {[%emt 0:00:40]} Rd7 {[%emt 0:01:39]} 27. Ra3 {[%emt 0:04:42]} Rcd6 {[%emt 0:01:01]} 28. b4 {[%emt 0:02:02]} Rc6 {[%emt 0:02:23]} 29. g3 {[%emt 0:01:01]} Rd4 {[%emt 0:01:49]} 30. Rb3 {[%emt 0:00:11]} g5 {[%emt 0:01:34]} 31. fxg5+ {[%emt 0:00:49]} Kxg5 {[%emt 0:00:06]} 32. a3 {[%emt 0:01:34]} e5 {[%emt 0:05:32]} 33. Rbf3 {[%emt 0:04:07]} e4 {[%emt 0:01:37]} 34. Rf5+ {[%emt 0:00:26]} Kg6 {[%emt 0:00:04]} 35. R5f4 {[%emt 0:00:16]} Rcd6 {[%emt 0:04:32]} 36. Re2 {[%emt 0:01:11]} f5 {[%emt 0:01:26]} 37. h3 {[%emt 0:01:59]} Kg5 {[%emt 0:03:57]} 38. Re3 {[%emt 0:02:13]} Rc4 {[%emt 0:05:57]} 39. Kb2 {[%emt 0:02:32]} Rd2 {[%emt 0:01:42]} 40. h4+ {[%emt 0:00:05]} Kf6 {[%emt 0:01:01]} 41. Rc3 {[%emt 0:30:18]} Rxc3 {[%emt 0:30:57]} 42. Kxc3 {[%emt 0:00:04]} Rg2 {[%emt 0:00:16]} 0-1

[Event "DLM Youth 2024"]
[Site "Tuebingen"]
[Date "2024.10.03"]
[Round "2"]
[White "Geist, Tim"]
[Black "Bursan, Ana-Maria"]
[Result "1-0"]
[ECO "C02"]
[WhiteElo "1977"]
[BlackElo "1769"]
[Annotator "NA RC"]
[PlyCount "75"]
[EventDate "2024.10.03"]
[EventType "team-swiss"]
[EventRounds "7"]
[EventCountry "GER"]
[SourceTitle "playchess.com"]
[Source "ChessBase"]
[SourceQuality "1"]
[TimeControl "40/5400+30:1800+30"]

1. e4 {[%emt 0:00:19]} e6 {[%emt 0:00:24]} 2. d4 {[%emt 0:00:25]} d5 {[%emt 0:00:06]} 3. e5 {[%emt 0:00:07]} c5 {[%emt 0:00:13]} 4. c3 {[%emt 0:00:08]} Nc6 {[%emt 0:00:18]} 5. Nf3 {[%emt 0:00:05]} Qb6 {[%emt 0:00:11]} 6. Bd3 {[%emt 0:00:41]} cxd4 {[%emt 0:00:14]} 7. O-O {[%emt 0:00:52]} Bd7 {[%emt 0:01:13]} 8. Re1 {[%emt 0:00:51]} Nge7 {[%emt 0:01:43]} 9. h4 {[%emt 0:00:12]} h5 {[%emt 0:07:14]} 10. Nbd2 {[%emt 0:02:01]} Nf5 {[%emt 0:06:09]} 11. Nb3 {[%emt 0:04:12]} a5 {[%emt 0:06:03]} 12. Bxf5 {[%emt 0:04:02]} exf5 {[%emt 0:02:22]} 13. Nbxd4 {[%emt 0:01:16]} Bc5 {[%emt 0:05:49]} 14. Be3 {[%emt 0:03:26]} Nxd4 {[%emt 0:11:01]} 15. Bxd4 {[%emt 0:02:51]} Be6 {[%emt 0:08:08]} 16. Qa4+ {[%emt 0:05:10]} Bd7 {[%emt 0:04:47]} 17. Qb3 {[%emt 0:03:39]} Qxb3 {[%emt 0:09:21]} 18. axb3 {[%emt 0:00:01]} b6 {[%emt 0:07:54]} 19. b4 {[%emt 0:05:00]} Bxd4 {[%emt 0:00:58]} 20. Nxd4 {[%emt 0:00:05]} Ke7 {[%emt 0:01:43]} 21. b5 {[%emt 0:02:46]} Rhc8 {[%emt 0:03:21]} 22. Re3 {[%emt 0:02:33]} Rc7 {[%emt 0:05:16]} 23. Rae1 {[%emt 0:01:41]} Be6 {[%emt 0:01:38]} 24. Rd3 {[%emt 0:03:32]} Rc5 {[%emt 0:05:33]} 25. f4 {[%emt 0:02:42]} Bd7 {[%emt 0:02:21]} 26. Rg3 {[%emt 0:01:36]} g6 {[%emt 0:02:38]} 27. e6 {[%emt 0:00:52]} Bxb5 {[%emt 0:01:48]} 28. b4 {[%emt 0:01:11]} axb4 {[%emt 0:02:38]} 29. cxb4 {[%emt 0:00:21]} Rc4 {[%emt 0:00:45]} 30. exf7+ {[%emt 0:02:24]} Kxf7 {[%emt 0:00:44]} 31. Nxb5 {[%emt 0:00:29]} Rxb4 {[%emt 0:00:43]} 32. Nd6+ {[%emt 0:00:30]} Kf6 {[%emt 0:01:35]} 33. Rge3 {[%emt 0:08:11]} Rxf4 {[%emt 0:00:44]} 34. Ne8+ {[%emt 0:01:08]} Kf7 {[%emt 0:01:02]} 35. Re7+ {[%emt 0:00:18]} Kg8 {[%emt 0:00:33]} 36. Nf6+ {[%emt 0:00:33]} Kf8 {[%emt 0:00:16]} 37. Rh7 {[%emt 0:00:52]} Rfa4 {[%emt 0:00:31]} 38. Ree7 {[%emt 0:01:04]} 1-0

[Event "DLM Youth 2024"]
[Site "Tuebingen"]
[Date "2024.10.03"]
[Round "2"]
[White "Sereda, Yaroslava"]
[Black "Peglau, Paul David"]
[Result "1/2-1/2"]
[ECO "C11"]
[WhiteElo "1972"]
[BlackElo "1943"]
[Annotator "NA RC"]
[PlyCount "56"]
[EventDate "2024.10.03"]
[EventType "team-swiss"]
[EventRounds "7"]
[EventCountry "GER"]
[SourceTitle "playchess.com"]
[Source "ChessBase"]
[SourceQuality "1"]
[TimeControl "40/5400+30:1800+30"]

1. e4 {[%emt 0:00:03]} e6 {[%emt 0:00:07]} 2. d4 {[%emt 0:00:05]} d5 {[%emt 0:00:06]} 3. Nc3 {[%emt 0:00:10]} Nf6 {[%emt 0:00:41]} 4. e5 {[%emt 0:00:58]} Nfd7 {[%emt 0:00:07]} 5. f4 {[%emt 0:01:01]} c5 {[%emt 0:00:10]} 6. Nf3 {[%emt 0:00:30]} Nc6 {[%emt 0:00:13]} 7. Be3 {[%emt 0:00:35]} cxd4 {[%emt 0:00:51]} 8. Nxd4 {[%emt 0:07:17]} Qb6 {[%emt 0:00:33]} 9. Qd2 {[%emt 0:03:29]} Qxb2 {[%emt 0:07:16]} 10. Rb1 {[%emt 0:04:38]} Qa3 {[%emt 0:00:14]} 11. Bb5 {[%emt 0:22:55]} Nxd4 {[%emt 0:11:01]} 12. Qxd4 {[%emt 0:01:35]} Be7 {[%emt 0:07:49]} 13. Bxd7+ {[%emt 0:02:40]} Bxd7 {[%emt 0:02:23]} 14. Rxb7 {[%emt 0:08:32]} Rc8 {[%emt 0:03:02]} 15. Rb3 {[%emt 0:02:28]} Qc5 {[%emt 0:05:43]} 16. Qxc5 {[%emt 0:07:52]} Bxc5 {[%emt 0:00:05]} 17. Bxc5 {[%emt 0:00:15]} Rxc5 {[%emt 0:00:09]} 18. Rb8+ {[%emt 0:01:08]} Rc8 {[%emt 0:08:53]} 19. Rxc8+ {[%emt 0:01:21]} Bxc8 {[%emt 0:00:01]} 20. Nb5 {[%emt 0:01:53]} Bd7 {[%emt 0:01:17]} 21. Nd6+ {[%emt 0:08:12]} Ke7 {[%emt 0:01:14]} 22. Kd2 {[%emt 0:03:54]} Rb8 {[%emt 0:01:43]} 23. Kc3 {[%emt 0:01:53]} Rb6 {[%emt 0:03:15]} 24. Rd1 {[%emt 0:02:57]} a5 {[%emt 0:10:06]} 25. a3 {[%emt 0:01:15]} Rc6+ {[%emt 0:04:33]} 26. Kb2 {[%emt 0:01:27]} Rb6+ {[%emt 0:02:21]} 27. Kc3 {[%emt 0:00:53]} Rc6+ {[%emt 0:00:50]} 28. Kb2 {[%emt 0:00:47]} Rb6+ {[%emt 0:00:55]} 1/2-1/2

[Event "DLM Youth 2024"]
[Site "Tuebingen"]
[Date "2024.10.03"]
[Round "2"]
[White "Mader, Fabian"]
[Black "Aniol, Nico"]
[Result "1/2-1/2"]
[ECO "B32"]
[WhiteElo "1963"]
[BlackElo "1864"]
[Annotator "NA RC"]
[PlyCount "80"]
[EventDate "2024.10.03"]
[EventType "team-swiss"]
[EventRounds "7"]
[EventCountry "GER"]
[SourceTitle "playchess.com"]
[Source "ChessBase"]
[SourceQuality "1"]
[TimeControl "40/5400+30:1800+30"]

1. e4 {[%emt 0:00:03]} c5 {[%emt 0:00:07]} 2. Nf3 {[%emt 0:00:08]} Nc6 {[%emt 0:00:07]} 3. d4 {[%emt 0:00:35]} cxd4 {[%emt 0:00:06]} 4. Nxd4 {[%emt 0:00:06]} e5 {[%emt 0:01:09]} 5. Nb5 {[%emt 0:00:50]} a6 {[%emt 0:00:03]} 6. Nd6+ {[%emt 0:00:28]} Bxd6 {[%emt 0:00:05]} 7. Qxd6 {[%emt 0:00:06]} Qe7 {[%emt 0:00:03]} 8. Qd1 {[%emt 0:00:57]} Nf6 {[%emt 0:00:07]} 9. Nc3 {[%emt 0:03:07]} d6 {[%emt 0:00:06]} 10. Bg5 {[%emt 0:01:25]} Be6 {[%emt 0:00:04]} 11. Bd3 {[%emt 0:04:02]} O-O {[%emt 0:01:36]} 12. O-O {[%emt 0:01:09]} h6 {[%emt 0:03:52]} 13. Bxf6 {[%emt 0:05:51]} Qxf6 {[%emt 0:00:09]} 14. Qd2 {[%emt 0:01:26]} Qf4 {[%emt 0:07:50]} 15. Rad1 {[%emt 0:06:07]} Rad8 {[%emt 0:03:48]} 16. Qxf4 {[%emt 0:07:21]} exf4 {[%emt 0:00:04]} 17. Be2 {[%emt 0:01:05]} Rd7 {[%emt 0:04:57]} 18. Rd2 {[%emt 0:01:07]} Rfd8 {[%emt 0:00:13]} 19. Rfd1 {[%emt 0:00:21]} g5 {[%emt 0:05:24]} 20. h3 {[%emt 0:02:47]} Kg7 {[%emt 0:01:42]} 21. Nd5 {[%emt 0:08:14]} Bxd5 {[%emt 0:03:16]} 22. Rxd5 {[%emt 0:00:10]} Ne5 {[%emt 0:00:20]} 23. Bg4 {[%emt 0:12:41]} Nxg4 {[%emt 0:02:35]} 24. hxg4 {[%emt 0:00:08]} f6 {[%emt 0:01:06]} 25. Kf1 {[%emt 0:02:22]} Kf7 {[%emt 0:00:22]} 26. Ke2 {[%emt 0:02:08]} Ke6 {[%emt 0:00:08]} 27. R1d4 {[%emt 0:02:11]} Rc8 {[%emt 0:01:42]} 28. Kd3 {[%emt 0:00:58]} Rc5 {[%emt 0:02:23]} 29. c4 {[%emt 0:02:42]} Rc6 {[%emt 0:05:26]} 30. b4 {[%emt 0:02:16]} Rc8 {[%emt 0:09:05]} 31. a4 {[%emt 0:05:01]} b6 {[%emt 0:03:42]} 32. Kc3 {[%emt 0:04:35]} Rc6 {[%emt 0:08:58]} 33. Kb3 {[%emt 0:05:15]} Ke7 {[%emt 0:02:04]} 34. Rd1 {[%emt 0:07:42]} Rdc7 {[%emt 0:03:08]} 35. R1d4 {[%emt 0:04:08]} Rd7 {[%emt 0:05:39]} 36. a5 {[%emt 0:02:33]} Rb7 {[%emt 0:02:22]} 37. b5 {[%emt 0:02:26]} bxa5 {[%emt 0:00:18]} 38. Ka4 {[%emt 0:00:23]} axb5+ {[%emt 0:03:45]} 39. cxb5 {[%emt 0:01:02]} Rc2 {[%emt 0:03:25]} 40. Rd2 {[%emt 0:01:38]} Rc1 {[%emt 0:07:16]} 1/2-1/2

[Event "DLM Youth 2024"]
[Site "Tuebingen"]
[Date "2024.10.03"]
[Round "2"]
[White "Bauer, Laura Sophie"]
[Black "Albrecht, Neil"]
[Result "1-0"]
[ECO "B90"]
[WhiteElo "1943"]
[BlackElo "1997"]
[Annotator "NA RC"]
[PlyCount "109"]
[EventDate "2024.10.03"]
[EventType "team-swiss"]
[EventRounds "7"]
[EventCountry "GER"]
[SourceTitle "playchess.com"]
[Source "ChessBase"]
[SourceQuality "1"]
[TimeControl "40/5400+30:1800+30"]

1. e4 {[%emt 0:00:03]} c5 {[%emt 0:00:06]} 2. Nf3 {[%emt 0:00:06]} d6 {[%emt 0:00:04]} 3. d4 {[%emt 0:00:06]} cxd4 {[%emt 0:00:06]} 4. Nxd4 {[%emt 0:00:09]} Nf6 {[%emt 0:00:28]} 5. Nc3 {[%emt 0:01:29]} a6 {[%emt 0:00:19]} 6. Bd3 {[%emt 0:02:24]} e5 {[%emt 0:00:26]} 7. Nde2 {[%emt 0:00:22]} Be7 {[%emt 0:01:03]} 8. O-O {[%emt 0:00:23]} Be6 {[%emt 0:03:59]} 9. f4 {[%emt 0:03:01]} Qc7 {[%emt 0:02:12]} 10. Ng3 {[%emt 0:09:44]} Nbd7 {[%emt 0:03:21]} 11. f5 {[%emt 0:06:23]} Bc4 {[%emt 0:00:34]} 12. Be3 {[%emt 0:01:11]} b5 {[%emt 0:02:48]} 13. Qe2 {[%emt 0:13:21]} Rc8 {[%emt 0:03:09]} 14. Rac1 {[%emt 0:10:33]} h5 {[%emt 0:08:11]} 15. b3 {[%emt 0:02:55]} Bxd3 {[%emt 0:10:21]} 16. cxd3 {[%emt 0:00:07]} Qb7 {[%emt 0:00:37]} 17. Qf3 {[%emt 0:04:38]} Nc5 {[%emt 0:07:29]} 18. Rfd1 {[%emt 0:01:34]} b4 {[%emt 0:05:15]} 19. Bxc5 {[%emt 0:07:00]} bxc3 {[%emt 0:05:48]} 20. Bf2 {[%emt 0:03:42]} Bd8 {[%emt 0:03:28]} 21. h3 {[%emt 0:03:25]} Bb6 {[%emt 0:01:49]} 22. Rc2 {[%emt 0:00:45]} Bd4 {[%emt 0:01:06]} 23. Bxd4 {[%emt 0:01:00]} exd4 {[%emt 0:00:05]} 24. Qf2 {[%emt 0:01:49]} O-O {[%emt 0:04:08]} 25. Qxd4 {[%emt 0:00:22]} Rc6 {[%emt 0:02:10]} 26. Rdc1 {[%emt 0:01:30]} Rfc8 {[%emt 0:00:57]} 27. Rxc3 {[%emt 0:05:31]} Rxc3 {[%emt 0:00:13]} 28. Rxc3 {[%emt 0:00:06]} Rxc3 {[%emt 0:00:11]} 29. Qxc3 {[%emt 0:00:05]} Qb6+ {[%emt 0:00:59]} 30. Kf1 {[%emt 0:03:14]} Qe3 {[%emt 0:01:57]} 31. Ne2 {[%emt 0:00:23]} Kh7 {[%emt 0:00:55]} 32. Qd4 {[%emt 0:00:38]} Qd2 {[%emt 0:00:09]} 33. Kf2 {[%emt 0:05:43]} Kg8 {[%emt 0:05:51]} 34. a4 {[%emt 0:01:17]} h4 {[%emt 0:01:32]} 35. Qc3 {[%emt 0:01:20]} Qd1 {[%emt 0:00:37]} 36. Qc8+ {[%emt 0:01:00]} Kh7 {[%emt 0:00:28]} 37. Qxa6 {[%emt 0:01:49]} Qd2 {[%emt 0:01:02]} 38. Qc4 {[%emt 0:02:45]} Nd7 {[%emt 0:01:03]} 39. Qc3 {[%emt 0:02:18]} Qd1 {[%emt 0:00:14]} 40. d4 {[%emt 0:01:35]} Nf6 {[%emt 0:01:02]} 41. Qe3 {[%emt 0:31:26]} Qc2 {[%emt 0:30:32]} 42. Kf3 {[%emt 0:01:24]} d5 {[%emt 0:00:53]} 43. Nc3 {[%emt 0:01:56]} dxe4+ {[%emt 0:00:55]} 44. Nxe4 {[%emt 0:00:21]} Qd1+ {[%emt 0:04:35]} 45. Kf2 {[%emt 0:00:00]} Nd5 {[%emt 0:00:00]} 46. Ng5+ {[%emt 0:00:00]} Kh6 {[%emt 0:00:00]} 47. Nxf7+ {[%emt 0:00:00]} Kh7 {[%emt 0:00:00]} 48. Ng5+ {[%emt 0:00:00]} Kh6 {[%emt 0:00:00]} 49. Nf7+ {[%emt 0:00:00]} Kh7 {[%emt 0:00:00]} 50. Qe4 {[%emt 0:00:00]} Qd2+ {[%emt 0:00:00]} 51. Kg1 {[%emt 0:00:00]} Nf4 {[%emt 0:00:00]} 52. f6+ {[%emt 0:00:00]} g6 {[%emt 0:00:00]} 53. Ng5+ {[%emt 0:00:00]} Kh6 {[%emt 0:00:00]} 54. f7 {[%emt 0:00:00]} Kxg5 {[%emt 0:00:00]} 55. Qe5+ {[%emt 0:00:00]} 1-0

[Event "DLM Youth 2024"]
[Site "Tuebingen"]
[Date "2024.10.03"]
[Round "2"]
[White "Vranckx, Oscar"]
[Black "Meitzner, Jonathan Franz"]
[Result "1-0"]
[ECO "B40"]
[WhiteElo "1933"]
[BlackElo "1845"]
[Annotator "NA RC"]
[PlyCount "71"]
[EventDate "2024.10.03"]
[EventType "team-swiss"]
[EventRounds "7"]
[EventCountry "GER"]
[SourceTitle "playchess.com"]
[Source "ChessBase"]
[SourceQuality "1"]
[TimeControl "40/5400+30:1800+30"]

1. e4 {[%emt 0:00:03]} c5 {[%emt 0:00:07]} 2. Nf3 {[%emt 0:00:17]} e6 {[%emt 0:00:08]} 3. g3 {[%emt 0:00:04]} Nc6 {[%emt 0:01:07]} 4. Bg2 {[%emt 0:00:09]} Qc7 {[%emt 0:00:47]} 5. O-O {[%emt 0:00:12]} Nf6 {[%emt 0:00:26]} 6. Qe2 {[%emt 0:00:11]} d6 {[%emt 0:01:45]} 7. d3 {[%emt 0:03:06]} Be7 {[%emt 0:01:00]} 8. Re1 {[%emt 0:01:17]} e5 {[%emt 0:04:58]} 9. Nbd2 {[%emt 0:03:09]} O-O {[%emt 0:01:00]} 10. Nf1 {[%emt 0:00:10]} Bd7 {[%emt 0:02:00]} 11. c3 {[%emt 0:01:19]} Rab8 {[%emt 0:04:29]} 12. Nh4 {[%emt 0:04:00]} Ne8 {[%emt 0:15:33]} 13. Nf5 {[%emt 0:01:50]} Bxf5 {[%emt 0:03:58]} 14. exf5 {[%emt 0:00:12]} Qd7 {[%emt 0:01:21]} 15. Ne3 {[%emt 0:03:28]} Bg5 {[%emt 0:04:36]} 16. Bh3 {[%emt 0:03:47]} Ne7 {[%emt 0:03:55]} 17. Qh5 {[%emt 0:03:37]} f6 {[%emt 0:05:46]} 18. Rf1 {[%emt 0:07:41]} d5 {[%emt 0:12:06]} 19. Ng2 {[%emt 0:10:50]} Bxc1 {[%emt 0:02:26]} 20. Raxc1 {[%emt 0:00:11]} Qb5 {[%emt 0:00:34]} 21. Qe2 {[%emt 0:01:21]} Nd6 {[%emt 0:00:41]} 22. f4 {[%emt 0:01:10]} Nc6 {[%emt 0:11:54]} 23. Ne3 {[%emt 0:02:07]} Rfe8 {[%emt 0:02:13]} 24. Nxd5 {[%emt 0:00:27]} exf4 {[%emt 0:01:49]} 25. Qg4 {[%emt 0:00:10]} Rf8 {[%emt 0:02:10]} 26. Nxf4 {[%emt 0:01:08]} Qxb2 {[%emt 0:01:09]} 27. Bg2 {[%emt 0:00:11]} Ne5 {[%emt 0:01:56]} 28. Bd5+ {[%emt 0:00:13]} Ndf7 {[%emt 0:02:12]} 29. Qh5 {[%emt 0:03:11]} Rbd8 {[%emt 0:02:16]} 30. Be4 {[%emt 0:02:39]} Qxa2 {[%emt 0:01:55]} 31. Ne6 {[%emt 0:00:49]} Nxd3 {[%emt 0:01:59]} 32. Rcd1 {[%emt 0:04:56]} Qa6 {[%emt 0:03:37]} 33. Qg4 {[%emt 0:02:54]} Ng5 {[%emt 0:00:59]} 34. Bxd3 {[%emt 0:00:38]} Rxd3 {[%emt 0:01:03]} 35. Nxc5 {[%emt 0:00:07]} Qb6 {[%emt 0:01:13]} 36. Qc4+ {[%emt 0:00:06]} 1-0

[Event "DLM Youth 2024"]
[Site "Tuebingen"]
[Date "2024.10.03"]
[Round "2"]
[White "Wilmink, Anna"]
[Black "Sickmann, Lisa"]
[Result "1/2-1/2"]
[ECO "B20"]
[WhiteElo "1927"]
[BlackElo "1946"]
[Annotator "NA RC"]
[PlyCount "98"]
[EventDate "2024.10.03"]
[EventType "team-swiss"]
[EventRounds "7"]
[EventCountry "GER"]
[SourceTitle "playchess.com"]
[Source "ChessBase"]
[SourceQuality "1"]
[TimeControl "40/5400+30:1800+30"]

1. e4 {[%emt 0:00:05]} c5 {[%emt 0:00:02]} 2. b3 {[%emt 0:00:09]} e6 {[%emt 0:00:23]} 3. Bb2 {[%emt 0:00:07]} b6 {[%emt 0:00:06]} 4. g3 {[%emt 0:00:41]} Bb7 {[%emt 0:00:10]} 5. Bg2 {[%emt 0:00:07]} Nf6 {[%emt 0:00:15]} 6. d3 {[%emt 0:00:26]} Be7 {[%emt 0:01:14]} 7. Nd2 {[%emt 0:01:06]} O-O {[%emt 0:00:18]} 8. f4 {[%emt 0:00:59]} Qc7 {[%emt 0:01:03]} 9. Nh3 {[%emt 0:01:28]} Nc6 {[%emt 0:02:12]} 10. O-O {[%emt 0:02:23]} Rfd8 {[%emt 0:09:59]} 11. Nf3 {[%emt 0:14:54]} d5 {[%emt 0:00:43]} 12. e5 {[%emt 0:01:08]} Ng4 {[%emt 0:00:30]} 13. Qe2 {[%emt 0:02:52]} d4 {[%emt 0:00:54]} 14. Bc1 {[%emt 0:18:29]} Nb4 {[%emt 0:05:22]} 15. Nfg5 {[%emt 0:04:24]} Bxg2 {[%emt 0:01:44]} 16. Kxg2 {[%emt 0:01:24]} h5 {[%emt 0:00:41]} 17. Nf2 {[%emt 0:03:42]} Nxf2 {[%emt 0:11:26]} 18. Rxf2 {[%emt 0:01:20]} g6 {[%emt 0:04:02]} 19. Ne4 {[%emt 0:02:16]} b5 {[%emt 0:00:52]} 20. a3 {[%emt 0:08:28]} Nd5 {[%emt 0:01:03]} 21. Bd2 {[%emt 0:05:30]} Rac8 {[%emt 0:00:32]} 22. a4 {[%emt 0:01:58]} b4 {[%emt 0:05:16]} 23. h3 {[%emt 0:03:12]} Kg7 24. Rh1 Rh8 25. Kf1 Qb7 26. Rfh2 Rh7 27. g4 {[%emt 0:01:59]} Kf8 {[%emt 0:04:16]} 28. Qf2 {[%emt 0:12:45]} Qd7 {[%emt 0:06:05]} 29. Rg1 {[%emt 0:04:32]} Ke8 {[%emt 0:01:28]} 30. Ke2 {[%emt 0:05:40]} Kd8 {[%emt 0:00:19]} 31. Rf1 Kc7 32. g5 Rhh8 33. Rhh1 Rhd8 34. Kf3 a5 35. Kg3 Nb6 36. Ra1 Qc6 37. Qf3 Kb8 38. Rhd1 Rd7 39. Be1 Rcd8 40. Bf2 Nd5 41. Nd2 Qc7 42. Nc4 Ka7 43. h4 Ka6 44. Bg1 Nb6 45. Nxb6 Kxb6 46. Re1 Qc6 47. Rad1 Rb7 48. Rd2 Rbd7 49. Qxc6+ Kxc6 1/2-1/2

[Event "DLM Youth 2024"]
[Site "Tuebingen"]
[Date "2024.10.03"]
[Round "2"]
[White "Junge, Mattheo Gabriel"]
[Black "Mueller, Riyanna"]
[Result "0-1"]
[ECO "B12"]
[WhiteElo "1907"]
[BlackElo "2014"]
[Annotator "NA RC"]
[PlyCount "100"]
[EventDate "2024.10.03"]
[EventType "team-swiss"]
[EventRounds "7"]
[EventCountry "GER"]
[SourceTitle "playchess.com"]
[Source "ChessBase"]
[SourceQuality "1"]
[TimeControl "40/5400+30:1800+30"]

1. e4 {[%emt 0:00:05]} c6 {[%emt 0:00:08]} 2. d4 {[%emt 0:00:09]} d5 {[%emt 0:00:08]} 3. f3 {[%emt 0:00:14]} Qb6 {[%emt 0:00:19]} 4. c3 {[%emt 0:05:29]} e5 {[%emt 0:01:51]} 5. exd5 {[%emt 0:08:21]} cxd5 {[%emt 0:01:46]} 6. Qe2 {[%emt 0:01:45]} Nc6 {[%emt 0:00:16]} 7. Be3 {[%emt 0:00:36]} Bf5 {[%emt 0:04:06]} 8. dxe5 {[%emt 0:04:38]} Bc5 {[%emt 0:00:13]} 9. Bxc5 {[%emt 0:00:35]} Qxc5 {[%emt 0:00:06]} 10. Nd2 {[%emt 0:01:30]} O-O-O {[%emt 0:01:30]} 11. Nb3 {[%emt 0:01:04]} Qb6 {[%emt 0:02:32]} 12. O-O-O {[%emt 0:02:57]} Kb8 {[%emt 0:04:27]} 13. g4 {[%emt 0:02:11]} Be6 {[%emt 0:01:36]} 14. f4 {[%emt 0:16:37]} d4 {[%emt 0:01:03]} 15. f5 {[%emt 0:08:26]} Bxb3 {[%emt 0:02:02]} 16. axb3 {[%emt 0:00:12]} Qxb3 {[%emt 0:01:51]} 17. Nf3 {[%emt 0:12:53]} dxc3 {[%emt 0:01:31]} 18. Rxd8+ {[%emt 0:02:14]} Nxd8 {[%emt 0:00:16]} 19. Bg2 {[%emt 0:10:38]} Nc6 {[%emt 0:04:43]} 20. Qc2 {[%emt 0:02:35]} cxb2+ {[%emt 0:00:15]} 21. Qxb2 {[%emt 0:00:17]} Qxb2+ {[%emt 0:09:24]} 22. Kxb2 {[%emt 0:00:06]} Nge7 {[%emt 0:00:19]} 23. Rd1 {[%emt 0:00:56]} Kc7 {[%emt 0:03:13]} 24. f6 {[%emt 0:08:18]} gxf6 {[%emt 0:00:13]} 25. exf6 {[%emt 0:00:08]} Ng6 {[%emt 0:01:30]} 26. Ng5 {[%emt 0:01:25]} Nce5 {[%emt 0:03:11]} 27. Rc1+ {[%emt 0:02:00]} Kb8 {[%emt 0:00:28]} 28. Rd1 {[%emt 0:02:28]} h6 {[%emt 0:02:47]} 29. Nh3 {[%emt 0:04:54]} Nc4+ {[%emt 0:08:42]} 30. Kb3 {[%emt 0:00:44]} Ne3 {[%emt 0:00:15]} 31. Rd2 {[%emt 0:00:08]} Nxg2 {[%emt 0:00:35]} 32. Rxg2 {[%emt 0:00:05]} Re8 {[%emt 0:00:06]} 33. Rg3 {[%emt 0:00:30]} Re2 {[%emt 0:03:46]} 34. g5 {[%emt 0:00:25]} h5 {[%emt 0:00:07]} 35. Rf3 {[%emt 0:00:49]} Rxh2 {[%emt 0:00:16]} 36. Nf4 {[%emt 0:00:13]} Nxf4 {[%emt 0:00:09]} 37. Rxf4 {[%emt 0:00:04]} Rg2 {[%emt 0:00:06]} 38. Re4 {[%emt 0:00:13]} Rxg5 {[%emt 0:00:22]} 39. Re7 {[%emt 0:00:19]} Rf5 {[%emt 0:01:29]} 40. Rxf7 {[%emt 0:00:06]} h4 {[%emt 0:00:14]} 41. Rh7 {[%emt 0:30:28]} Rxf6 {[%emt 0:30:15]} 42. Rxh4 {[%emt 0:00:05]} a6 {[%emt 0:03:23]} 43. Kb4 {[%emt 0:00:06]} Ka7 {[%emt 0:00:29]} 44. Ka5 {[%emt 0:00:08]} b6+ {[%emt 0:00:28]} 45. Kb4 {[%emt 0:00:08]} a5+ {[%emt 0:00:14]} 46. Kb5 {[%emt 0:00:17]} Rf5+ {[%emt 0:00:07]} 47. Ka4 {[%emt 0:00:07]} Ka6 {[%emt 0:00:22]} 48. Rh6 {[%emt 0:00:13]} Rf4+ {[%emt 0:00:21]} 49. Kb3 {[%emt 0:00:06]} a4+ {[%emt 0:00:28]} 50. Ka3 {[%emt 0:00:08]} Ka5 {[%emt 0:00:08]} 0-1